Cogmind - Beta 17.1 @@@ ROGUE MODE // 2026.09.15 @ 11:28:06 Player: jimmyl Result: Destroyed by Y-45 Defender with Beam Rifle Performance ------------- Evolutions (0) 0 Regions Visited (3) 600 Robots Destroyed (19) 95 Value Destroyed (517) 517 Prototype IDs (2) 40 Alien Tech Used (0) 0 Bonus (5864) 5864 TOTAL SCORE: 7116 Bonus ------- Follower Combat Kills 14 Prayed to X0-1V1 5000 Major X0-1V1 Interference 850 Cogmind --------- Core Integrity 0/150 Matter 204/900 Energy 125/125 System Corruption 6% Temperature Hot (250) Movement Core (550) Ox10 Location -9/Recycling Parts ------- > --- POWER (1) -------- Light Ion Engine > --- PROPULSION (2) --- (None) > --- UTILITY (2) ------ Large Storage Unit X0-1V1's Piety Tracker > --- WEAPON (2) ------- Subdweller Machine Gun Battle Cannon > --- INVENTORY (15) --- Improved Treads Improved Treads Wheel Compact Wheel Improved Heat Sink Large Storage Unit High-capacity Storage Unit Scrap Shield Autogun Autogun Autogun Rocket Launcher Peak State ------------ > --- POWER ------------ Heavy Ion Engine > --- PROPULSION ------- Improved Treads Improved Treads > --- UTILITY ---------- Large Storage Unit X0-1V1's Piety Tracker > --- WEAPON ----------- Subdweller Machine Gun Rocket Launcher > --- INVENTORY -------- Light Ion Engine Wheel Compact Wheel Improved Heat Sink Large Storage Unit High-capacity Storage Unit Scrap Shield Autogun Autogun Autogun Autogun Battle Cannon Rocket Launcher [Rating: 27] Favorites ----------- Power Heavy Ion Engine Engine Heavy Ion Engine Propulsion Light Treads Treads Light Treads Leg Aluminum Leg Utility Large Storage Unit Device X0-1V1's Piety Tracker Storage Large Storage Unit Weapon Autogun Energy Gun EM Pulse Gun Ballistic Gun Autogun Ballistic Cannon Battle Cannon Launcher Rocket Launcher Build | -11 -10 -10 -9 ------- Run | Yrd Mat Sub Rec Slots Evolved . | . . . . Power . | . . . . Propulsion . | . . . . Utility . | . . . . Weapon . | . . . . Parts Attached 26 | . 16 6 4 Power 3 | . 2 . 1 Engine 3 | . 2 . 1 Core . | . . . . Reactor . | . . . . Propulsion 8 | . 6 . 2 Treads 6 | . 4 . 2 Leg 2 | . 2 . . Wheel . | . . . . Hover . | . . . . Flight . | . . . . Utility 7 | . 4 3 . Device 5 | . 2 3 . Storage 2 | . 2 . . Processor . | . . . . Hackware . | . . . . Protection . | . . . . Artifact . | . . . . Weapon 8 | . 4 3 1 Energy Gun . | . . . . Energy Cannon . | . . . . Ballistic Gun 5 | . 4 1 . Ballistic Cannon 1 | . . . 1 Launcher 2 | . . 2 . Special Weapon . | . . . . Impact Weapon . | . . . . Slashing Weapon . | . . . . Piercing Weapon . | . . . . Special Melee Weapon . | . . . . Unidentified Prototypes 2 | . 2 . . Parts Lost 6 | . 1 2 3 Power 1 | . . . 1 Propulsion 2 | . . . 2 Utility 2 | . . 2 . Weapon 1 | . 1 . . Highest Loss Streak 3 | . 1 1 3 To Critical Strikes . | . . . . Average Backups 10 | . 8 12 13 Power . | . 1 1 . Propulsion 2 | . 3 2 3 Utility 2 | . 1 3 4 Weapon 4 | . 2 5 5 Tool/Special . | . . . . Unused Backups 15 | . 6 . 9 Power 1 | . 1 . . Propulsion 4 | . . . 4 Utility 4 | . 1 . 3 Weapon 6 | . 4 . 2 Tool/Special . | . . . . Average Slot Usage (%) 98 | . 98 99 99 Engine 13 | . 13 14 14 Treads 21 | . 14 28 27 Leg 5 | . 12 . . Device 13 | . 12 13 14 Storage 14 | . 14 14 14 Ballistic Gun 22 | . 26 21 13 Launcher 4 | . . 6 13 Peak Build Rating 27 | . 24 25 27 Average Rating 17 | . 9 23 26 On Entrance 15 | 6 6 24 25 Avg Prop Armor Cover (%) . | . . . . Naked Turns . | . . . . Heaviest Build 37 | 14 35 37 37 Greatest Support 46 | 20 40 40 46 Greatest Overweight (x) 2 | . 2 . 1 Average Overweight (x) . | . . . . Largest Inventory Capacity 15 | . 15 15 15 Average Capacity 12 | . 9 15 15 Most Carried 15 | . 11 15 15 Average Carried 10 | . 8 12 14 Final Capacity 15 | 8 15 15 15 Final Carried 14 | 6 10 14 13 Class Distribution -------------------- 100% | Mutant Dominant Class ---------------- Mutant | -10/Materials Mutant | -10/Subcaves Mutant | -9/Recycling Resources | -11 -10 -10 -9 ----------- Run | Yrd Mat Sub Rec Matter Collected 772 | 200 219 220 133 Remotely 219 | . 219 . . Salvage Created 746 | . 378 198 170 Parts 42 | . 22 15 5 Haulers Intercepted 2 | . 2 . . Recyclers Shooed . | . . . . Parts Field Recycled . | . . . . Retrieved Matter . | . . . . Parts Self-Destructed 16 | . . 16 . Prevented . | . . . . Parts Restored . | . . . . Kills | -11 -10 -10 -9 ------- Run | Yrd Mat Sub Rec Combat Hostiles Destroyed 14 | . 6 7 1 Guns 8 | . 5 2 1 AOE 6 | . 1 5 . Classes Destroyed 7 | . 5 2 . Worker 1 | . 1 . . Hauler 2 | . 2 . . Turret 1 | . . 1 . Watcher 1 | . 1 . . Swarmer 3 | . 1 2 . Grunt 10 | . 5 4 1 Subdweller 1 | . . 1 . Best Kill Streak 5 | . 5 3 1 Combat Bots Only 3 | . 3 3 1 Max Kills in Single Turn 3 | . 3 3 1 Gunslinging . | . . . . Exploded 3 | . 1 3 . Melee . | . . . . Uniques/NPCs Destroyed . | . . . . Combat | -11 -10 -10 -9 -------- Run | Yrd Mat Sub Rec Hostile Shots Fired 113 | . 29 44 40 Missed 30 | . 10 13 7 Hits 83 | . 19 31 33 Projectile 83 | . 19 31 33 Critical Strikes 1 | . . . 1 Damage Taken 1334 | . 311 619 404 Core 168 | . . 83 85 Absorbed by Shields . | . . . . Core Remaining (%) 100 | 100 . . . Volleys Fired 60 | . 24 25 11 Largest 2 | . 2 2 2 Hottest 66 | . 60 66 63 Shots Fired 100 | . 48 38 14 Gun 79 | . 48 20 11 Cannon 3 | . . . 3 Launcher 18 | . . 18 . Special . | . . . . Kinetic 81 | . 47 20 14 Thermal . | . . . . Explosive 18 | . . 18 . Electromagnetic 1 | . 1 . . Robot Hit Streak 18 | . 12 18 3 Robot Miss Streak 4 | . 3 1 4 Penetration Max . | . . . . Secondary Targets 1 | . 1 . . Max Gunslinging Chain 1 | . 1 . . Shots Hit Robots 53 | . 33 14 6 Core Hits 33 | . 16 14 3 Critical Kills . | . . . . Critical Parts Destroyed . | . . . . Critical Strikes . | . . . . Melee Attacks . | . . . . Impact . | . . . . Slashing . | . . . . Piercing . | . . . . Sneak Attacks . | . . . . Combat Hostiles . | . . . . Follow-up Attacks . | . . . . Damage Inflicted 1496 | . 667 687 142 Guns 709 | . 343 242 124 Cannons 18 | . . . 18 Explosions 769 | . 324 445 . Melee . | . . . . Ramming . | . . . . Kinetic 712 | . 328 242 142 Thermal 324 | . 324 . . Explosive 445 | . . 445 . Electromagnetic 15 | . 15 . . Impact . | . . . . Slashing . | . . . . Piercing . | . . . . Highest Corruption 6 | . . 3 6 Average Corruption 2 | . . 2 3 Corruption Purged . | . . . . Corruption Blocked . | . . . . Effects 8 | . . 3 5 Message Errors 3 | . . 1 2 Matter Fused 2 | . . 1 1 Data Loss (minor) 1 | . . . 1 Data Loss (major) 1 | . . . 1 Alerts 1 | . . 1 . Overload Shots . | . . . . Overflow Damage 118 | . 90 28 . Projectiles . | . . . . Explosions 118 | . 90 28 . Melee . | . . . . Knockbacks . | . . . . Impact . | . . . . Kinetic . | . . . . Secondary . | . . . . Self-Inflicted Damage 179 | . 93 86 . Shots 3 | . 1 2 . Rammed . | . . . . Targets Rammed . | . . . . Kicked . | . . . . Crushed . | . . . . Highest Temperature 328 | . 328 . 326 Average Temperature 112 | . 80 . 185 Received Heat Transfer 294 | . 102 138 54 Effects 1 | . . . 1 Energy Bleed 1 | . . . 1 Siege Activations . | . . . . Martial Activations . | . . . . Shielding Activations . | . . . . Robots Disrupted . | . . . . Combat Hostiles . | . . . . Robots Corrupted . | . . . . Combat Hostiles . | . . . . Parts Fried . | . . . . Impact Corruptions . | . . . . Robots Melted . | . . . . Combat Hostiles . | . . . . Parts Melted . | . . . . Heat Transferred 200 | . 200 . . Parts Sabotaged . | . . . . Parts Stolen . | . . . . Parts Stripped . | . . . . Power Chain Reactions . | . . . . Alert | -11 -10 -10 -9 ------- Run | Yrd Mat Sub Rec Maximum Alert Level . | . . . . Low Security (%) 100 | . 100 . 100 Level 1 . | . . . . Level 2 . | . . . . Level 3 . | . . . . Level 4 . | . . . . Level 5 . | . . . . High Security . | . . . . Max Security . | . . . . Peak Influence 140 | . 140 . 71 Initial 51 | . . . 51 Average 43 | . 44 . 39 Influence Increases 670 | . 292 255 123 Destroy 0b10 Robot/C 320 | . 120 180 20 Destroy 0b10 Robot/NC 30 | . 20 . 10 Destroy Leader 46 | . 36 10 . Allied During Kill 5 | . . 5 . Successful Hack 22 | . 22 . . Select Force Hacks 90 | . . . 90 Disable Machine 45 | . 45 . . Destroy Structure 22 | . 19 . 3 Lose Combat Pursuer 90 | . 30 60 . Influence Decreases 666 | . 292 148 226 Entered New Map 56 | . . . 56 Time Decay 520 | . 282 98 140 Lost Part 50 | . 10 10 30 Lost Ally 40 | . . 40 . Squads Dispatched 2 | . 2 . . Investigation 1 | . 1 . . Extermination . | . . . . Reinforcement 1 | . 1 . . Assault . | . . . . Garrison . | . . . . Intercept . | . . . . Searches Triggered . | . . . . Construction Impeded . | . . . . Haulers Reinforced . | . . . . Active Scanning Responses . | . . . . Cargo Convoy Interrupts . | . . . . Stealth | -11 -10 -10 -9 --------- Run | Yrd Mat Sub Rec Distress Signals 1 | . . . 1 Communications Jammed . | . . . . Distress Signals . | . . . . Times Spotted 25 | . 9 11 5 Peak Tracking Total 5 | . 3 4 5 Tactical Retreats 4 | . 1 3 . Traps | -11 -10 -10 -9 ------- Run | Yrd Mat Sub Rec Traps Triggered 3 | . . 3 . Indirectly . | . . . . Trap Hack Attempts . | . . . . Triggered . | . . . . Disarmed . | . . . . Reprogrammed . | . . . . Reused . | . . . . Traps Extracted . | . . . . Installed . | . . . . Triggered . | . . . . Machines | -11 -10 -10 -9 ---------- Run | Yrd Mat Sub Rec Machines Disabled 7 | . 3 4 . Max in Single Turn 3 | . 3 2 . Machines Repaired . | . . . . Machines Dismantled . | . . . . Machines Sabotaged . | . . . . Overloaded Fab Kills . | . . . . Hacking | -11 -10 -10 -9 --------- Run | Yrd Mat Sub Rec Machines Accessed 11 | . 7 . 4 Terminals 8 | . 7 . 1 Fabricators . | . . . . Repair Stations . | . . . . Recycling Units 3 | . . . 3 Scanalyzers . | . . . . Garrison Access . | . . . . Total Hacks 24 | . 17 . 7 Successful 11 | . 6 . 5 Failed 13 | . 11 . 2 Catastrophic 1 | . 1 . . Database Lockouts . | . . . . Manual 6 | . 3 . 3 Terminals 21 | . 17 . 4 Fabricators . | . . . . Repair Stations . | . . . . Recycling Units 3 | . . . 3 Scanalyzers . | . . . . Garrison Access . | . . . . Terminal Hacks 7 | . 5 . 2 Emergency Access Points 1 | . 1 . . Alert Level 1 | . . . 1 Locate Traps 4 | . 4 . . Zone Layout 1 | . . . 1 Fabricator Hacks . | . . . . Repair Station Hacks . | . . . . Recycling Unit Hacks . | . . . . Scanalyzer . | . . . . Garrison Access Hacks . | . . . . Unauthorized Hacks 4 | . 1 . 3 Terminals 1 | . 1 . . Track 1 | . 1 . . Fabricators . | . . . . Repair Stations . | . . . . Recycling Units 3 | . . . 3 Tunnel 3 | . . . 3 Scanalyzers . | . . . . Garrison Access . | . . . . Data Cores Recovered . | . . . . Used . | . . . . Hacking Detections 5 | . 5 . . Full Trace Events 1 | . 1 . . Feedback Events . | . . . . Feedback Blocked . | . . . . Robot Schematics Acquired . | . . . . Robots Built . | . . . . Authchips . | . . . . Time . | . . . . Total Robot Build Rating . | . . . . Part Schematics Acquired . | . . . . Parts Built . | . . . . Authchips . | . . . . Time . | . . . . Total Part Build Rating . | . . . . Part Studies Acquired . | . . . . Parts Repaired . | . . . . Time . | . . . . Parts Recycled . | . . . . Recycled Matter . | . . . . Retrieved Matter . | . . . . Retrieved Components . | . . . . Parts Scanalyzed . | . . . . Part Schematics Acquired . | . . . . Parts Damaged . | . . . . Bothacking | -11 -10 -10 -9 ------------ Run | Yrd Mat Sub Rec Used RIF Installer . | . . . . Robots Hacked . | . . . . Non-combat . | . . . . Combat . | . . . . Robot Hacks Applied . | . . . . Relay Couplers Released . | . . . . Fabnet Peak Effective % . | . . . . Robots Rewired . | . . . . Allies Hacked . | . . . . Hacks Repelled . | . . . . Allies | -11 -10 -10 -9 -------- Run | Yrd Mat Sub Rec Total Allies 2 | . . 2 . Largest Group 2 | . . 2 . Highest-Rated Group 10 | . . 10 . Highest-Rated Ally 5 | . . 5 . Total Orders . | . . . . Ally Attacks 10 | . . 10 . Total Damage 44 | . . 44 . Kills 2 | . . 2 . Allies Corrupted . | . . . . Allies Melted . | . . . . X0-1V1 Amusement Gains 110 | . 10 50 50 Average Entertainment 22 | . 10 21 26 Good Acts 8 | . . 8 . Bad Acts 10 | . . 7 3 Intel | -11 -10 -10 -9 ------- Run | Yrd Mat Sub Rec Active Infowar (turns) . | . . . . Robot Analysis Total . | . . . . Derelict Logs Recovered 2 | . . 2 . Drone Launches . | . . . . Drone Recoveries . | . . . . Exploration | -11 -10 -10 -9 ------------- Run | Yrd Mat Sub Rec Turns Passed 2539 | . 1160 1080 299 Spaces Moved 1403 | 1 628 619 155 Core . | . . . . Treads 1080 | . 306 619 155 Legs 323 | 1 322 . . Wheels . | . . . . Hover . | . . . . Flight . | . . . . Fastest Speed 120 | 120 120 160 160 Average Speed 159 | 120 158 160 160 Slowest Speed 260 | 120 260 160 240 Overloaded Moves . | . . . . Propulsion Burnouts . | . . . . Robots Hopped . | . . . . Potential Cave-ins 2 | . . 2 . Cave-ins Triggered . | . . . . Exploration Rate (%) 40 | 2 89 34 35 Regions Visited 3 Branch Regions 2 Pre-discovered Areas 4 | . . 1 3 Known Exits Taken 1 | . . 1 . Unknown Exits Taken 2 | 1 1 . . Scrap Searched 4 | . . 4 . Spaces Dug . | . . . . Terrain Destroyed 130 | . 21 107 2 Melee . | . . . . Projectile 2 | . . . 2 AOE 128 | . 21 107 . Terrain Rammed . | . . . . Walls Destroyed . | . . . . Machines Disabled . | . . . . Actions | -11 -10 -10 -9 --------- Run | Yrd Mat Sub Rec Total 1606 | . 749 665 192 Wait 71 | . 57 9 5 Move 1400 | . 627 618 155 Hop . | . . . . Pick Up 18 | . 11 5 2 Fast Attach 8 | . 6 . 2 Attach 8 | . 5 2 1 Detach . | . . . . Swap 13 | . 5 6 2 Drop 17 | . 14 . 3 Fire 60 | . 24 25 11 Melee . | . . . . Ram . | . . . . Kick . | . . . . Crush . | . . . . Escape Stasis . | . . . . Rewire 11 | . . . 11 Trap . | . . . . Miscellaneous . | . . . . Route ------- -11/Scrapyard -10/Materials (discovered 6 exits: [*Mat x3] / [*Min x2] / [*Sub]) -10/Subcaves (discovered 2 exits: [*Mat] / *Rec) -9/Recycling History --------- Turn | Location | Event 1 | -11/Scrapyard | Discovered new exit (range 0) 1 | -11/Scrapyard | Entered Materials 114 | -10/Materials | Met 8R-AWN 267 | -10/Materials | Discovered new exit (range 16) 303 | -10/Materials | Build established: Mutant 465 | -10/Materials | Discovered new exit (range 13) 756 | -10/Materials | Discovered new exit (range 10) 892 | -10/Materials | Discovered new exit (range 8) 1039 | -10/Materials | Discovered new exit (range 14) 1137 | -10/Materials | Discovered new exit (range 5) 1154 | -10/Materials | Prayed at D.C.S.S. Altar Unit 1161 | -10/Materials | Entered Subcaves 1163 | -10/Subcaves | Identified exit to Recycling 1302 | -10/Subcaves | Learned location of Recycling (-9) 1428 | -10/Subcaves | Shifting Twisted Machinery released Sub. Machine Gun 1453 | -10/Subcaves | Shifting Twisted Machinery released Mak. System Shield 1928 | -10/Subcaves | Matter capacity permanently improved by X0-1V1 (+200; -100 max core) 1955 | -10/Subcaves | X0-1V1 sent hostile G-34 Mercenary (x3) 1969 | -10/Subcaves | X0-1V1 caused items to flee you 2073 | -10/Subcaves | Ambushed by Subdweller buried in earth 2089 | -10/Subcaves | X0-1V1 sent allied S-10 Pest (x2) 2126 | -10/Subcaves | Shifting Twisted Machinery released Sub. Optics 2149 | -10/Subcaves | Discovered new exit (range 8) 2170 | -10/Subcaves | Items stopped fleeing you 2205 | -10/Subcaves | X0-1V1 activates XOMVISION 2215 | -10/Subcaves | Shifting Twisted Machinery released Spk. Treads 2218 | -10/Subcaves | Shifting Twisted Machinery released Flamer 2241 | -10/Subcaves | Entered Recycling 2242 | -9/Recycling | Met a Zionite searching for Scraptown 2512 | -9/Recycling | Core integrity fell below 50% 2537 | -9/Recycling | Core integrity fell below 20% 2540 | -9/Recycling | Destroyed by Y-45 Defender with Beam Rifle Last Messages --------------- 02484_ CH>X,ZZ1FYFGIQM6BCDXV ##Y 02502_ Attempting to rewire Y-45 Defender. 02511_ P-60 Hacker springs to life. 02512_ I-25 Savior springs to life. 02512_ I-25 Savior sends out distress signal. 02512_ Y-45 Defender springs to life. 02512_ S-10 Pest springs to life. 02522_ G-34 Mercenary destroyed. 02524_ Hvy. Ion Engine destroyed. 02525_ Discarded Rocket Launcher. 02529_ X0-1V1 wants to heat up the action around here (+314 heat). 02532_ Overheating: Energy bleed (-21). 02537_ X0-1V1: "The ol' switcheroo!" S-10 Pest form resolidifies at new position. Form resolidifies at new position. 02537_ Imp. Treads destroyed. 02540_ 8LRUXCMWQ